[Event "CCT Chessable Masters Play-In 2025"]
[Site "Online"]
[Date "2025.02.17"]
[Round "4.6"]
[White "Lazavik, Denis"]
[Black "Kuzubov, Yuriy"]
[Result "1-0"]
[ECO "D35"]
[WhiteElo "2572"]
[BlackElo "2597"]
[PlyCount "127"]
[EventDate "2025.02.13"]
[EventType "swiss"]
[EventCountry "NET"]
[TimeControl "600"]
[WhiteClock "0:01:07"]
[BlackClock "0:00:08"]

1. d4 {[%emt 0:00:01]} Nf6 {[%emt 0:00:02]} 2. c4 {[%emt 0:00:00]} e6 {[%emt 0:00:01]} 3. Nc3 {[%emt 0:00:00]} d5 {[%emt 0:00:01]} 4. cxd5 {[%emt 0:00:01]} exd5 {[%emt 0:00:00]} 5. Bg5 {[%emt 0:00:01]} c6 {[%emt 0:00:04]} 6. e3 {[%emt 0:00:01]} Be7 {[%emt 0:00:02]} 7. Bd3 {[%emt 0:00:01]} Nbd7 {[%emt 0:00:01]} 8. Nge2 {[%emt 0:00:04]} O-O {[%emt 0:00:03]} 9. O-O {[%emt 0:00:01]} Re8 {[%emt 0:00:01]} 10. a4 {[%emt 0:00:09]} Nf8 {[%emt 0:00:15]} 11. Qc2 {[%emt 0:00:09]} h6 {[%emt 0:00:05]} 12. Bh4 {[%emt 0:00:02]} Nh5 {[%emt 0:00:11]} 13. Bxe7 {[%emt 0:00:02]} Qxe7 {[%emt 0:00:00]} 14. a5 {[%emt 0:00:01]} Nf6 {[%emt 0:00:27]} 15. Rfe1 {[%emt 0:00:21]} Qd6 {[%emt 0:00:09]} 16. Ng3 {[%emt 0:00:02]} h5 {[%emt 0:00:10]} 17. f3 {[%emt 0:00:08]} Bd7 {[%emt 0:00:23]} 18. Qf2 {[%emt 0:00:06]} c5 {[%emt 0:00:07]} 19. dxc5 {[%emt 0:00:25]} Qxc5 {[%emt 0:00:03]} 20. e4 {[%emt 0:00:05]} Qxf2+ {[%emt 0:01:15]} 21. Kxf2 {[%emt 0:00:00]} dxe4 {[%emt 0:00:45]} 22. Ngxe4 {[%emt 0:00:02]} Nxe4+ {[%emt 0:00:03]} 23. Bxe4 {[%emt 0:00:03]} Rab8 {[%emt 0:00:25]} 24. Rad1 {[%emt 0:00:02]} b6 {[%emt 0:00:10]} 25. a6 {[%emt 0:00:11]} Red8 {[%emt 0:00:43]} 26. Bb7 {[%emt 0:00:49]} Ne6 {[%emt 0:00:13]} 27. b4 {[%emt 0:00:02]} Be8 {[%emt 0:00:06]} 28. Nd5 {[%emt 0:00:01]} Kf8 {[%emt 0:00:09]} 29. Rc1 {[%emt 0:01:33]} Bb5 {[%emt 0:00:12]} 30. Nc7 {[%emt 0:00:20]} Nxc7 {[%emt 0:00:08]} 31. Rxc7 {[%emt 0:00:00]} Rd7 {[%emt 0:00:04]} 32. Rec1 {[%emt 0:00:12]} Ke7 {[%emt 0:00:03]} 33. Kg3 {[%emt 0:00:29]} Rbd8 {[%emt 0:00:13]} 34. R7c3 {[%emt 0:00:01]} g5 {[%emt 0:00:05]} 35. Bc6 {[%emt 0:00:20]} Bxc6 {[%emt 0:00:05]} 36. Rxc6 {[%emt 0:00:00]} f5 {[%emt 0:00:11]} 37. h4 {[%emt 0:00:19]} f4+ {[%emt 0:00:04]} 38. Kh2 {[%emt 0:00:00]} gxh4 {[%emt 0:00:08]} 39. Rh6 {[%emt 0:00:07]} Rd2 {[%emt 0:00:07]} 40. Kh3 {[%emt 0:00:44]} R8d7 {[%emt 0:00:38]} 41. Rxh5 {[%emt 0:00:11]} Rb2 {[%emt 0:00:37]} 42. Rh7+ {[%emt 0:00:04]} Kd8 {[%emt 0:00:04]} 43. Rxd7+ {[%emt 0:00:30]} Kxd7 {[%emt 0:00:02]} 44. Rc4 {[%emt 0:00:00]} Ra2 {[%emt 0:00:25]} 45. Rxf4 {[%emt 0:00:02]} Rxa6 {[%emt 0:00:01]} 46. Rxh4 {[%emt 0:00:07]} Ra4 {[%emt 0:00:01]} 47. b5 {[%emt 0:00:17]} Ra5 {[%emt 0:00:13]} 48. Rh7+ {[%emt 0:00:04]} Ke6 {[%emt 0:00:02]} 49. g4 {[%emt 0:00:04]} Kf6 {[%emt 0:00:01]} 50. Kg3 {[%emt 0:00:01]} Rxb5 {[%emt 0:00:02]} 51. Rxa7 {[%emt 0:00:01]} Rb1 {[%emt 0:00:01]} 52. Rb7 {[%emt 0:00:03]} b5 {[%emt 0:00:01]} 53. Rb6+ {[%emt 0:00:01]} Ke5 {[%emt 0:00:00]} 54. f4+ {[%emt 0:00:04]} Ke4 {[%emt 0:00:02]} 55. Re6+ {[%emt 0:00:01]} Kd5 {[%emt 0:00:01]} 56. f5 {[%emt 0:00:00]} b4 {[%emt 0:00:12]} 57. Rb6 {[%emt 0:00:01]} Kc5 {[%emt 0:00:01]} 58. Rb8 {[%emt 0:00:15]} b3 {[%emt 0:00:02]} 59. Kh4 {[%emt 0:00:06]} Kd6 {[%emt 0:00:02]} 60. Kg5 {[%emt 0:00:01]} Ke7 {[%emt 0:00:02]} 61. Rb7+ {[%emt 0:00:01]} Ke8 {[%emt 0:00:02]} 62. Kg6 {[%emt 0:00:03]} b2 {[%emt 0:00:01]} 63. g5 {[%emt 0:00:00]} Kd8 {[%emt 0:00:05]} 64. f6 {[%emt 0:00:01]} 1-0

[Event "CCT Chessable Masters Play-In 2025"]
[Site "Online"]
[Date "2025.02.17"]
[Round "4.7"]
[White "Santos Latasa, Jaime"]
[Black "Wei, Yi"]
[Result "0-1"]
[ECO "E61"]
[WhiteElo "2631"]
[BlackElo "2755"]
[PlyCount "146"]
[EventDate "2025.02.13"]
[EventType "swiss"]
[EventCountry "NET"]
[TimeControl "600"]
[BlackClock "0:01:00"]

1. Nf3 {[%emt 0:00:01]} d6 {[%emt 0:00:08]} 2. d4 {[%emt 0:00:06]} Nf6 {[%emt 0:00:01]} 3. c4 {[%emt 0:00:01]} g6 {[%emt 0:00:01]} 4. Nc3 {[%emt 0:00:02]} Bf5 {[%emt 0:00:02]} 5. Nh4 {[%emt 0:00:06]} Bd7 {[%emt 0:00:02]} 6. Nf3 {[%emt 0:00:03]} Bf5 {[%emt 0:00:04]} 7. Nh4 {[%emt 0:00:04]} Bd7 {[%emt 0:00:02]} 8. Nf3 {[%emt 0:00:01]} Bg7 {[%emt 0:00:04]} 9. e4 {[%emt 0:00:01]} O-O {[%emt 0:00:02]} 10. Be2 {[%emt 0:00:01]} e5 {[%emt 0:00:18]} 11. O-O {[%emt 0:00:05]} Nc6 {[%emt 0:00:12]} 12. d5 {[%emt 0:00:02]} Ne7 {[%emt 0:00:02]} 13. Ne1 {[%emt 0:00:02]} Ne8 {[%emt 0:00:10]} 14. Be3 {[%emt 0:00:26]} f5 {[%emt 0:00:03]} 15. f3 {[%emt 0:00:01]} f4 {[%emt 0:00:15]} 16. Bf2 {[%emt 0:00:01]} g5 {[%emt 0:00:01]} 17. Nd3 {[%emt 0:00:04]} Nf6 {[%emt 0:00:08]} 18. c5 {[%emt 0:00:05]} h5 {[%emt 0:00:02]} 19. Qb3 {[%emt 0:00:16]} Ng6 {[%emt 0:00:21]} 20. c6 {[%emt 0:00:05]} Be8 {[%emt 0:00:55]} 21. cxb7 {[%emt 0:00:02]} Rb8 {[%emt 0:00:00]} 22. Bxa7 {[%emt 0:00:29]} g4 {[%emt 0:00:01]} 23. Bxb8 {[%emt 0:00:37]} Qxb8 {[%emt 0:00:01]} 24. fxg4 {[%emt 0:00:39]} hxg4 {[%emt 0:00:03]} 25. Nf2 {[%emt 0:00:02]} Bd7 {[%emt 0:00:18]} 26. Bb5 {[%emt 0:00:10]} g3 {[%emt 0:00:02]} 27. hxg3 {[%emt 0:00:14]} fxg3 {[%emt 0:00:01]} 28. Bxd7 {[%emt 0:00:07]} gxf2+ {[%emt 0:00:06]} 29. Rxf2 {[%emt 0:00:01]} Nxd7 {[%emt 0:00:13]} 30. Rxf8+ {[%emt 0:00:05]} Bxf8 {[%emt 0:00:03]} 31. a4 {[%emt 0:00:32]} Bh6 {[%emt 0:00:02]} 32. Ne2 {[%emt 0:00:13]} Kg7 {[%emt 0:00:19]} 33. a5 {[%emt 0:00:04]} Nc5 {[%emt 0:00:03]} 34. Qf3 {[%emt 0:00:48]} Qxb7 {[%emt 0:01:17]} 35. Rf1 {[%emt 0:00:25]} Bf4 {[%emt 0:00:05]} 36. g3 {[%emt 0:00:07]} Bg5 {[%emt 0:00:01]} 37. Qf7+ {[%emt 0:00:05]} Kh6 {[%emt 0:00:01]} 38. Qf5 {[%emt 0:01:41]} Qxb2 {[%emt 0:00:10]} 39. Kf2 {[%emt 0:00:04]} Qd2 {[%emt 0:00:09]} 40. Rh1+ {[%emt 0:00:18]} Kg7 {[%emt 0:00:02]} 41. Qf3 {[%emt 0:00:06]} Nd3+ {[%emt 0:00:09]} 42. Kg2 {[%emt 0:00:06]} Ne1+ {[%emt 0:00:05]} 43. Rxe1 {[%emt 0:00:02]} Qxe1 {[%emt 0:00:00]} 44. a6 {[%emt 0:00:01]} Qa1 {[%emt 0:00:09]} 45. Qd3 {[%emt 0:00:08]} Nf8 {[%emt 0:00:35]} 46. Qb5 {[%emt 0:00:03]} Be3 {[%emt 0:00:04]} 47. g4 {[%emt 0:00:13]} Qa2 {[%emt 0:00:11]} 48. Kf3 {[%emt 0:00:04]} Qa3 {[%emt 0:00:02]} 49. Kg2 {[%emt 0:00:02]} Bb6 {[%emt 0:00:02]} 50. Ng3 {[%emt 0:00:03]} Qc5 {[%emt 0:00:27]} 51. Qe8 {[%emt 0:00:05]} Qf2+ {[%emt 0:00:12]} 52. Kh3 {[%emt 0:00:01]} Qe3 {[%emt 0:00:01]} 53. Kg2 {[%emt 0:00:06]} Qf2+ {[%emt 0:00:02]} 54. Kh3 {[%emt 0:00:02]} Qf3 {[%emt 0:00:04]} 55. Qe7+ {[%emt 0:00:07]} Kg6 {[%emt 0:00:06]} 56. Kh4 {[%emt 0:00:07]} Qf6+ {[%emt 0:00:14]} 57. Qxf6+ {[%emt 0:00:01]} Kxf6 {[%emt 0:00:00]} 58. Kh5 {[%emt 0:00:02]} Nh7 {[%emt 0:00:06]} 59. Kh6 {[%emt 0:00:02]} Nf8 {[%emt 0:00:01]} 60. g5+ {[%emt 0:00:01]} Kf7 {[%emt 0:00:01]} 61. Nf5 {[%emt 0:00:03]} Ng6 {[%emt 0:00:00]} 62. Kh7 {[%emt 0:00:01]} Nf8+ {[%emt 0:00:10]} 63. Kh6 {[%emt 0:00:01]} Bc5 {[%emt 0:00:01]} 64. Nh4 {[%emt 0:00:02]} Be3 {[%emt 0:00:04]} 65. Nf5 {[%emt 0:00:01]} Bf2 {[%emt 0:00:00]} 66. Nh4 {[%emt 0:00:04]} Kg8 {[%emt 0:00:05]} 67. g6 {[%emt 0:00:01]} Be3+ {[%emt 0:00:00]} 68. Kh5 {[%emt 0:00:01]} Nd7 {[%emt 0:00:00]} 69. Kg4 {[%emt 0:00:01]} Bb6 {[%emt 0:00:04]} 70. Kf5 {[%emt 0:00:01]} Kg7 {[%emt 0:00:09]} 71. Kg5 {[%emt 0:00:01]} Be3+ {[%emt 0:00:00]} 72. Kg4 {[%emt 0:00:01]} Bf2 {[%emt 0:00:04]} 73. Kg5 Bxh4+ {[%emt 0:00:02]} 0-1

[Event "CCT Chessable Masters Play-In 2025"]
[Site "Online"]
[Date "2025.02.17"]
[Round "4.8"]
[White "Rustemov, Alexander"]
[Black "Nihal Sarin"]
[Result "0-1"]
[ECO "E12"]
[WhiteElo "2525"]
[BlackElo "2687"]
[PlyCount "70"]
[EventDate "2025.02.13"]
[EventType "swiss"]
[EventCountry "NET"]
[TimeControl "600"]
[WhiteClock "0:00:58"]
[BlackClock "0:03:38"]

1. d4 {[%emt 0:00:01]} Nf6 {[%emt 0:00:05]} 2. c4 {[%emt 0:00:00]} e6 {[%emt 0:00:02]} 3. Nf3 {[%emt 0:00:01]} b6 {[%emt 0:00:15]} 4. a3 {[%emt 0:00:01]} Ba6 {[%emt 0:00:02]} 5. Qc2 {[%emt 0:00:02]} Bb7 {[%emt 0:00:03]} 6. Nc3 {[%emt 0:00:03]} c5 {[%emt 0:00:01]} 7. e4 {[%emt 0:00:02]} cxd4 {[%emt 0:00:01]} 8. Nxd4 {[%emt 0:00:00]} Bc5 {[%emt 0:00:03]} 9. Nb3 {[%emt 0:00:02]} Nc6 {[%emt 0:00:06]} 10. Bg5 {[%emt 0:00:01]} Nd4 {[%emt 0:00:34]} 11. Nxd4 {[%emt 0:00:04]} Bxd4 {[%emt 0:00:00]} 12. Bd3 {[%emt 0:00:10]} h6 {[%emt 0:00:14]} 13. Bh4 {[%emt 0:00:10]} O-O {[%emt 0:00:02]} 14. f4 {[%emt 0:01:57]} Qc7 {[%emt 0:00:26]} 15. Rf1 {[%emt 0:01:13]} Bxc3+ {[%emt 0:01:18]} 16. bxc3 {[%emt 0:00:01]} Ng4 {[%emt 0:00:01]} 17. Qe2 {[%emt 0:00:17]} Nxh2 {[%emt 0:00:18]} 18. Rh1 {[%emt 0:00:46]} Qxf4 {[%emt 0:00:03]} 19. g3 {[%emt 0:00:03]} Nf3+ {[%emt 0:00:01]} 20. Kf2 {[%emt 0:00:01]} Qe5 {[%emt 0:00:00]} 21. Kxf3 {[%emt 0:01:23]} f5 {[%emt 0:00:03]} 22. Ke3 {[%emt 0:00:12]} fxe4 {[%emt 0:00:40]} 23. Kd2 {[%emt 0:00:02]} Rf3 {[%emt 0:00:29]} 24. Rhe1 {[%emt 0:00:12]} Qa5 {[%emt 0:00:25]} 25. Qxf3 {[%emt 0:00:22]} exf3 {[%emt 0:00:00]} 26. Be7 {[%emt 0:00:00]} Qh5 {[%emt 0:00:23]} 27. Rh1 {[%emt 0:00:17]} Qf7 {[%emt 0:00:02]} 28. Bd6 {[%emt 0:00:03]} Re8 {[%emt 0:00:06]} 29. Bf4 {[%emt 0:00:16]} e5 {[%emt 0:00:04]} 30. Be3 {[%emt 0:00:01]} e4 {[%emt 0:00:12]} 31. Bb1 {[%emt 0:00:03]} Ba6 {[%emt 0:00:01]} 32. Bd4 {[%emt 0:00:47]} e3+ {[%emt 0:00:15]} 33. Bxe3 {[%emt 0:00:01]} Bxc4 {[%emt 0:00:00]} 34. Bc2 {[%emt 0:00:21]} Qd5+ {[%emt 0:00:07]} 35. Bd4 {[%emt 0:00:07]} Qg5+ {[%emt 0:00:00]} 0-1

[Event "CCT Chessable Masters Play-In 2025"]
[Site "Online"]
[Date "2025.02.17"]
[Round "4.9"]
[White "Giri, Anish"]
[Black "Rakhmanov, Aleksandr"]
[Result "1-0"]
[ECO "A20"]
[WhiteElo "2728"]
[BlackElo "2585"]
[PlyCount "103"]
[EventDate "2025.02.13"]
[EventType "swiss"]
[EventCountry "NET"]
[TimeControl "600"]
[WhiteClock "0:02:15"]

1. c4 {[%emt 0:00:06]} e5 {[%emt 0:00:04]} 2. g3 {[%emt 0:00:01]} h5 {[%emt 0:00:04]} 3. Nf3 {[%emt 0:00:04]} Nc6 {[%emt 0:00:02]} 4. Nc3 {[%emt 0:00:04]} d6 {[%emt 0:00:03]} 5. d3 {[%emt 0:00:12]} Nd4 {[%emt 0:00:07]} 6. Bg2 {[%emt 0:00:09]} Nxf3+ {[%emt 0:00:03]} 7. Bxf3 {[%emt 0:00:00]} c6 {[%emt 0:00:14]} 8. b4 {[%emt 0:00:25]} h4 {[%emt 0:00:20]} 9. b5 {[%emt 0:00:04]} cxb5 {[%emt 0:00:04]} 10. Nxb5 {[%emt 0:00:07]} hxg3 {[%emt 0:00:04]} 11. hxg3 {[%emt 0:00:02]} Rxh1+ {[%emt 0:00:01]} 12. Bxh1 {[%emt 0:00:00]} Be7 {[%emt 0:00:15]} 13. Qb3 {[%emt 0:00:03]} Nf6 {[%emt 0:00:10]} 14. Bd2 {[%emt 0:00:21]} Kf8 {[%emt 0:00:14]} 15. Rb1 {[%emt 0:00:07]} Nd7 {[%emt 0:01:05]} 16. Bb4 {[%emt 0:00:41]} Nc5 {[%emt 0:00:11]} 17. Qa3 {[%emt 0:00:01]} Kg8 {[%emt 0:00:59]} 18. Nc3 {[%emt 0:00:24]} Na6 {[%emt 0:01:12]} 19. Ba5 {[%emt 0:00:47]} Qd7 {[%emt 0:00:02]} 20. Nd5 {[%emt 0:00:01]} Bf8 {[%emt 0:01:21]} 21. Bg2 {[%emt 0:00:06]} Rb8 {[%emt 0:00:09]} 22. Bd2 {[%emt 0:00:07]} b6 {[%emt 0:00:09]} 23. Be3 {[%emt 0:00:20]} Bb7 {[%emt 0:00:39]} 24. Kf1 {[%emt 0:00:07]} Ra8 {[%emt 0:00:28]} 25. Kg1 {[%emt 0:00:20]} Qc8 {[%emt 0:00:18]} 26. Qa4 {[%emt 0:00:18]} Nc7 {[%emt 0:00:13]} 27. Nc3 {[%emt 0:00:13]} Bxg2 {[%emt 0:00:04]} 28. Kxg2 {[%emt 0:00:01]} Qb7+ {[%emt 0:00:02]} 29. f3 {[%emt 0:00:05]} d5 {[%emt 0:00:05]} 30. Qd7 {[%emt 0:01:00]} dxc4 {[%emt 0:00:08]} 31. Nb5 {[%emt 0:00:14]} Rc8 {[%emt 0:00:02]} 32. Rh1 {[%emt 0:00:07]} f6 {[%emt 0:00:29]} 33. dxc4 {[%emt 0:00:14]} a6 {[%emt 0:00:14]} 34. Nxc7 {[%emt 0:00:18]} Rxc7 {[%emt 0:00:02]} 35. Qe6+ {[%emt 0:00:01]} Rf7 {[%emt 0:00:01]} 36. Qxb6 {[%emt 0:00:01]} Qc8 {[%emt 0:00:07]} 37. c5 {[%emt 0:00:07]} e4 {[%emt 0:00:01]} 38. Qb1 {[%emt 0:00:07]} exf3+ {[%emt 0:00:01]} 39. exf3 {[%emt 0:00:00]} Rb7 {[%emt 0:00:02]} 40. Qh7+ {[%emt 0:00:03]} Kf7 {[%emt 0:00:01]} 41. Qc2 {[%emt 0:00:02]} Qe6 {[%emt 0:00:03]} 42. Bf2 {[%emt 0:00:00]} Rc7 {[%emt 0:00:01]} 43. Rd1 {[%emt 0:00:01]} Qc6 {[%emt 0:00:01]} 44. Qc4+ {[%emt 0:00:01]} Qe6 {[%emt 0:00:01]} 45. Qc2 {[%emt 0:00:01]} Rc6 {[%emt 0:00:00]} 46. Rd2 {[%emt 0:00:03]} Be7 {[%emt 0:00:00]} 47. Rd3 {[%emt 0:00:02]} Qc8 {[%emt 0:00:01]} 48. Rc3 {[%emt 0:00:01]} Kf8 {[%emt 0:00:00]} 49. Rc4 {[%emt 0:00:01]} Kf7 {[%emt 0:00:01]} 50. Qe4 {[%emt 0:00:01]} Kf8 {[%emt 0:00:00]} 51. Qd5 {[%emt 0:00:02]} Qc7 52. Re4 {[%emt 0:00:02]} 1-0

[Event "CCT Chessable Masters Play-In 2025"]
[Site "Online"]
[Date "2025.02.17"]
[Round "4.10"]
[White "Sindarov, Javokhir"]
[Black "Lu, Shanglei"]
[Result "1-0"]
[ECO "B40"]
[WhiteElo "2700"]
[BlackElo "2618"]
[PlyCount "61"]
[EventDate "2025.02.13"]
[EventType "swiss"]
[EventCountry "NET"]
[TimeControl "600"]
[WhiteClock "0:04:56"]
[BlackClock "0:02:57"]

1. e4 {[%emt 0:00:01]} c5 {[%emt 0:00:02]} 2. Nf3 {[%emt 0:00:01]} e6 {[%emt 0:00:01]} 3. d4 {[%emt 0:00:02]} cxd4 {[%emt 0:00:00]} 4. Nxd4 {[%emt 0:00:01]} Nc6 {[%emt 0:00:01]} 5. Nxc6 {[%emt 0:00:01]} bxc6 {[%emt 0:00:04]} 6. Bd3 {[%emt 0:00:00]} Nf6 {[%emt 0:00:09]} 7. O-O {[%emt 0:00:02]} d5 {[%emt 0:00:01]} 8. e5 {[%emt 0:00:01]} Nd7 {[%emt 0:00:00]} 9. Re1 {[%emt 0:00:00]} a5 {[%emt 0:00:27]} 10. Nd2 {[%emt 0:00:03]} Ba6 {[%emt 0:00:03]} 11. c4 {[%emt 0:00:00]} Be7 {[%emt 0:00:04]} 12. Qg4 {[%emt 0:00:06]} g6 {[%emt 0:00:06]} 13. Nf3 {[%emt 0:00:02]} h5 {[%emt 0:00:13]} 14. Qf4 {[%emt 0:00:02]} Nc5 {[%emt 0:00:14]} 15. Bf1 {[%emt 0:00:17]} Kf8 {[%emt 0:00:10]} 16. Ng5 {[%emt 0:00:39]} Qe8 {[%emt 0:01:33]} 17. Be3 {[%emt 0:00:06]} Kg7 {[%emt 0:00:08]} 18. Rac1 {[%emt 0:00:24]} dxc4 {[%emt 0:00:35]} 19. Bxc5 {[%emt 0:00:58]} Bxc5 {[%emt 0:00:02]} 20. Ne4 {[%emt 0:00:00]} Be7 {[%emt 0:00:12]} 21. Nd6 {[%emt 0:00:02]} Qf8 {[%emt 0:00:31]} 22. Bxc4 {[%emt 0:00:01]} h4 {[%emt 0:00:03]} 23. Bxa6 {[%emt 0:00:29]} Rxa6 {[%emt 0:00:02]} 24. Rc3 {[%emt 0:00:00]} Rh5 {[%emt 0:00:05]} 25. Rf3 {[%emt 0:00:03]} Bxd6 {[%emt 0:00:05]} 26. exd6 {[%emt 0:00:01]} Rd5 {[%emt 0:00:07]} 27. Qxh4 {[%emt 0:00:37]} Kg8 {[%emt 0:01:05]} 28. Rh3 {[%emt 0:00:54]} Rh5 {[%emt 0:00:02]} 29. Qc4 {[%emt 0:00:00]} Rxh3 {[%emt 0:00:12]} 30. Qxa6 {[%emt 0:00:09]} Rh5 {[%emt 0:00:46]} 31. Rd1 {[%emt 0:00:02]} 1-0

[Event "CCT Chessable Masters Play-In 2025"]
[Site "Online"]
[Date "2025.02.17"]
[Round "4.11"]
[White "Vokhidov, Shamsiddin"]
[Black "Mamedov, Rauf"]
[Result "1-0"]
[ECO "B52"]
[WhiteElo "2670"]
[BlackElo "2656"]
[PlyCount "95"]
[EventDate "2025.02.13"]
[EventType "swiss"]
[EventCountry "NET"]
[TimeControl "600"]
[WhiteClock "0:04:57"]
[BlackClock "0:02:27"]

1. e4 {[%emt 0:00:01]} c5 {[%emt 0:00:16]} 2. Nf3 {[%emt 0:00:01]} d6 {[%emt 0:00:03]} 3. Bb5+ {[%emt 0:00:00]} Bd7 {[%emt 0:00:06]} 4. Bxd7+ {[%emt 0:00:02]} Qxd7 {[%emt 0:00:01]} 5. c4 {[%emt 0:00:01]} g6 {[%emt 0:00:02]} 6. Nc3 {[%emt 0:00:01]} Bg7 {[%emt 0:00:01]} 7. d4 {[%emt 0:00:00]} cxd4 {[%emt 0:00:01]} 8. Nxd4 {[%emt 0:00:00]} Nf6 {[%emt 0:00:00]} 9. h3 {[%emt 0:00:01]} O-O {[%emt 0:00:01]} 10. Be3 {[%emt 0:00:02]} Rc8 {[%emt 0:00:01]} 11. b3 {[%emt 0:00:01]} Nc6 {[%emt 0:00:00]} 12. O-O {[%emt 0:00:02]} Qd8 {[%emt 0:00:01]} 13. Rc1 {[%emt 0:00:02]} Qa5 {[%emt 0:00:02]} 14. Nxc6 {[%emt 0:00:11]} bxc6 {[%emt 0:00:05]} 15. Re1 {[%emt 0:00:10]} Nd7 {[%emt 0:00:27]} 16. Bd4 {[%emt 0:00:03]} Bh6 {[%emt 0:00:19]} 17. Rc2 {[%emt 0:00:03]} Nc5 {[%emt 0:00:07]} 18. e5 {[%emt 0:00:06]} Ne6 {[%emt 0:00:05]} 19. exd6 {[%emt 0:00:05]} Nxd4 {[%emt 0:00:02]} 20. Qxd4 {[%emt 0:00:03]} Bg7 {[%emt 0:00:02]} 21. Qd2 {[%emt 0:00:25]} exd6 {[%emt 0:00:02]} 22. Ne4 {[%emt 0:00:04]} Qxd2 {[%emt 0:00:06]} 23. Rxd2 {[%emt 0:00:00]} Re8 {[%emt 0:00:00]} 24. Rxd6 {[%emt 0:00:21]} Re7 {[%emt 0:02:46]} 25. Re3 {[%emt 0:00:21]} Kf8 {[%emt 0:00:06]} 26. Nd2 {[%emt 0:00:47]} Bh6 {[%emt 0:00:05]} 27. Rxe7 {[%emt 0:00:07]} Kxe7 {[%emt 0:00:01]} 28. Rd3 {[%emt 0:00:05]} a5 {[%emt 0:00:25]} 29. Ne4 {[%emt 0:00:08]} a4 {[%emt 0:00:00]} 30. g3 {[%emt 0:00:04]} axb3 {[%emt 0:00:06]} 31. axb3 {[%emt 0:00:01]} Ra5 {[%emt 0:00:06]} 32. Kg2 {[%emt 0:00:02]} Bg7 {[%emt 0:00:03]} 33. h4 {[%emt 0:00:08]} Be5 {[%emt 0:00:11]} 34. f4 {[%emt 0:00:08]} Bg7 {[%emt 0:00:14]} 35. Kf3 {[%emt 0:00:03]} h5 {[%emt 0:00:01]} 36. Nd6 {[%emt 0:00:03]} Ra1 {[%emt 0:00:08]} 37. Nc8+ {[%emt 0:00:04]} Ke8 {[%emt 0:00:01]} 38. Nd6+ {[%emt 0:00:12]} Ke7 {[%emt 0:00:01]} 39. c5 {[%emt 0:00:01]} Rf1+ {[%emt 0:00:03]} 40. Ke2 {[%emt 0:00:01]} Rc1 {[%emt 0:00:02]} 41. Re3+ {[%emt 0:00:01]} Kd7 {[%emt 0:00:05]} 42. b4 {[%emt 0:00:18]} f5 {[%emt 0:00:20]} 43. Rd3 {[%emt 0:00:02]} Ke6 {[%emt 0:00:03]} 44. Nb7 {[%emt 0:00:06]} Bc3 {[%emt 0:00:07]} 45. Nd8+ {[%emt 0:00:02]} Kf6 {[%emt 0:00:06]} 46. Nxc6 {[%emt 0:00:03]} Be1 {[%emt 0:00:07]} 47. b5 {[%emt 0:00:27]} Rb1 {[%emt 0:00:36]} 48. b6 {[%emt 0:00:04]} 1-0

[Event "CCT Chessable Masters Play-In 2025"]
[Site "Online"]
[Date "2025.02.17"]
[Round "4.12"]
[White "Deac, Bogdan-Daniel"]
[Black "Korobov, Anton"]
[Result "1/2-1/2"]
[ECO "D45"]
[WhiteElo "2692"]
[BlackElo "2627"]
[PlyCount "72"]
[EventDate "2025.02.13"]
[EventType "swiss"]
[EventCountry "NET"]
[TimeControl "600"]
[WhiteClock "0:00:14"]
[BlackClock "0:01:15"]

1. d4 {[%emt 0:00:01]} Nf6 {[%emt 0:00:04]} 2. c4 {[%emt 0:00:00]} e6 {[%emt 0:00:01]} 3. Nc3 {[%emt 0:00:01]} d5 {[%emt 0:00:01]} 4. Nf3 {[%emt 0:00:02]} c6 {[%emt 0:00:02]} 5. e3 {[%emt 0:00:05]} Nbd7 {[%emt 0:00:03]} 6. Qc2 {[%emt 0:00:01]} Bd6 {[%emt 0:00:03]} 7. Be2 {[%emt 0:00:17]} O-O {[%emt 0:00:03]} 8. O-O {[%emt 0:00:01]} b6 {[%emt 0:00:05]} 9. e4 {[%emt 0:00:13]} dxe4 {[%emt 0:00:02]} 10. Nxe4 {[%emt 0:00:01]} Nxe4 {[%emt 0:00:01]} 11. Qxe4 {[%emt 0:00:00]} Bb7 {[%emt 0:00:01]} 12. Rd1 {[%emt 0:00:01]} Qc7 {[%emt 0:00:17]} 13. Bd3 {[%emt 0:00:41]} g6 {[%emt 0:00:03]} 14. Qh4 {[%emt 0:00:16]} c5 {[%emt 0:00:31]} 15. Be4 {[%emt 0:02:12]} Bxe4 {[%emt 0:00:43]} 16. Qxe4 {[%emt 0:00:02]} cxd4 {[%emt 0:00:47]} 17. Qxd4 {[%emt 0:01:37]} Ne5 {[%emt 0:00:03]} 18. Qh4 {[%emt 0:00:26]} Nxf3+ {[%emt 0:00:12]} 19. gxf3 {[%emt 0:00:01]} Be5 {[%emt 0:00:38]} 20. Rb1 {[%emt 0:00:06]} Rfd8 {[%emt 0:00:35]} 21. Rxd8+ {[%emt 0:00:38]} Rxd8 {[%emt 0:00:00]} 22. Be3 {[%emt 0:00:01]} Rd7 {[%emt 0:00:30]} 23. b3 {[%emt 0:00:09]} f5 {[%emt 0:00:13]} 24. Re1 {[%emt 0:00:56]} Qc6 {[%emt 0:00:33]} 25. Kg2 {[%emt 0:01:18]} Rd3 {[%emt 0:00:24]} 26. Re2 {[%emt 0:00:22]} Bc3 {[%emt 0:00:53]} 27. c5 {[%emt 0:00:02]} b5 {[%emt 0:00:18]} 28. a4 {[%emt 0:00:01]} bxa4 {[%emt 0:00:31]} 29. bxa4 {[%emt 0:00:05]} Bd4 {[%emt 0:00:38]} 30. Rd2 {[%emt 0:00:04]} Rxd2 {[%emt 0:00:04]} 31. Bxd2 {[%emt 0:00:00]} Qxc5 {[%emt 0:00:11]} 32. Qd8+ {[%emt 0:00:01]} Kf7 {[%emt 0:00:01]} 33. Qd7+ {[%emt 0:00:02]} Kf6 {[%emt 0:00:12]} 34. Qd8+ {[%emt 0:00:00]} Kf7 {[%emt 0:00:01]} 35. Qd7+ {[%emt 0:00:01]} Kf6 {[%emt 0:00:00]} 36. Qd8+ {[%emt 0:00:02]} Kf7 {[%emt 0:00:01]} 1/2-1/2